[Event "WSTCC-65 2024"]
[Site "Krakow"]
[Date "2024.07.06"]
[Round "5.14"]
[White "Orton, Stephen L A"]
[Black "Raupp, Thomas"]
[Result "1-0"]
[ECO "C42"]
[WhiteElo "2115"]
[BlackElo "2237"]
[Annotator "TA"]
[PlyCount "57"]
[EventDate "2024.07.01"]
[EventType "team-tourn"]
[EventCountry "POL"]
[SourceTitle "playchess.com"]
[Source "ChessBase"]
[SourceQuality "1"]
[TimeControl "40/5400+30:1800+30"]

{[%evp 13,57,7,23,18,15,5,22,15,16,0,0,-53,0,-13,17,0,29,32,41,33,34,22,24,0,0,-31,219,228,218,36,41,24,34,8,114,0,0,0,204,216,252,179,185,36,29975,29974]} 1. e4 {[%emt 0:00:04]} e5 {[%emt 0:00:32]} 2. Nf3 {[%emt 0:00:07]} Nf6 {[%emt 0:00:13]} 3. Nxe5 {[%emt 0:00:09]} d6 {[%emt 0:00:18]} 4. Nf3 {[%emt 0:00:03]} Nxe4 {[%emt 0:00:09]} 5. Nc3 {[%emt 0:00:22]} Nxc3 {[%emt 0:00:17]} 6. dxc3 {[%emt 0:00:05][%cal Bd2c3,Bc3c4][%mdl 32]} Be7 {[%emt 0:00:10]} 7. Be3 {[%emt 0:00:05]} O-O {[%emt 0:00:27]} 8. Qd2 {[%emt 0:00:13]} Nd7 {[%emt 0:00:18]} 9. O-O-O {[%emt 0:00:45]} Nf6 {[%emt 0:00:54]} 10. Bd3 {[%emt 0:03:00] The position is equal.} c5 {[%emt 0:00:41][%cal Ob7b5]} 11. c4 {[%emt 0:06:00]} Bd7 {[%emt 0:29:31]} 12. Ng5 {[%emt 0:16:06]} (12. Bf4 $11) 12... Bc6 {[%emt 0:05:06]} ({Black should try} 12... b5 $15) 13. f3 {[%emt 0:03:52]} Qd7 {[%emt 0:11:34]} 14. g4 {[%emt 0:13:34]} b5 {[%emt 0:05:58]} 15. cxb5 {[%emt 0:07:46]} Bxb5 {[%emt 0:00:07]} 16. c4 $1 {[%emt 0:05:48]} Ba4 {[%emt 0:01:58]} 17. b3 {[%emt 0:02:24]} (17. Bc2 $5) 17... Bc6 {[%emt 0:00:05]} 18. Qc2 $36 {[%emt 0:00:54][%mdl 2048] White is more active.} h6 {[%emt 0:08:47][%cal Oa7a5]} 19. h4 {[%emt 0:06:41][%cal Oe3c5]} Rfd8 $2 {[%emt 0:06:24]} (19... hxg5 $2 20. hxg5 Rfd8 21. Qh2 $18 (21. gxf6 Bxf6 22. Qh2 Kf8 $18)) (19... Qb7 $15 {keeps the upper hand.}) 20. Bh7+ $18 {[%emt 0:08:01]} Kf8 {[%emt 0:00:13][%cal Od7e8]} 21. Bf5 $2 {[%emt 0:06:09]} (21. Nxf7 $18 Qe6 (21... Kxf7 $2 22. Qg6+ Kf8 23. Bxh6 $18) 22. Rde1 Qxf7 23. Bg6) 21... Qb7 $14 {[%emt 0:00:59][%cal Oa7a5]} 22. Ne4 {[%emt 0:01:33]} (22. Rde1 {with more complications.} a5 23. Nxf7 Kxf7 24. g5) 22... Nxe4 {[%emt 0:03:56]} 23. fxe4 {[%emt 0:04:39] Hoping for g5.} (23. Bxe4 {simplifies} Bxe4 24. Qxe4 Qxe4 25. fxe4 Bf6 26. g5) 23... Kg8 {[%emt 0:13:03]} (23... Ke8 $11 {remains equal.}) 24. g5 {[%emt 0:02:26] White is more active.} (24. Rhg1 $1 $16) 24... g6 $11 {[%emt 0:03:42]} 25. gxh6 $1 {[%emt 0:01:14]} Kh7 $2 {[%emt 0:00:12] [#]} (25... gxf5 $2 26. Qg2+ Kf8 27. Qg7+ Ke8 28. h7 $18) (25... Bf6 $1 $11 26. Rhg1 Kh8) 26. Rhg1 $1 $18 {[%emt 0:05:24]} Rg8 {[%emt 0:00:27] [#]} (26... gxf5 27. Rg7+ Kh8 28. Qb2 Bf8 (28... f6 29. Qg2 Bxe4 30. Qg6 Bh1 31. Rh7#) 29. Rdg1 (29. Rxf7+ Kg8 30. Qf6 Qxf7 31. Rg1+ Bg7 32. Rxg7+ Kh8 33. Rxf7+ Kg8 34. h7#) 29... f6 30. Rg8+ (30. Rxb7 Be7 31. Rxe7 Rf8) 30... Kh7 31. Qxf6 (31. exf5 Bxh6 32. R8g3 Bxe3+ 33. Rxe3 Rg8 $15) (31. exf5 Bxh6 32. R8g3 Bxe3+ 33. Rxe3 Rg8 $15)) (26... Bf6 27. e5) 27. Qf2 {[%emt 0:01:43][%cal Oe4e5] And now e5! would win.} Raf8 {[%emt 0:04:23] [#]} 28. Qf4 {[%emt 0:01:10]} gxf5 $4 {[%emt 0:02:14][%mdl 8192] [#]} (28... Qb4 $14 29. Bd2 Qa3+ 30. Kb1 Bf6 (30... gxf5 $2 {perishes.} 31. Qxf5+ Rg6 32. h5 $18)) 29. Rg7+ $1 {Weighted Error Value: White=0.40/Black=0.55.  Loses game:     	---       	Black=3      Missed win:     	White=1     	---        Mistake:       	White=3     	Black=2      Inaccurate:     	White=1     	Black=2      OK:         	White=5     	Black=6      Best:        	White=1     	Black=3      Strong:       	White=4     	---} 1-0

[Event "WSTCC-65 2024"]
[Site "Krakow"]
[Date "2024.07.06"]
[Round "5.14"]
[White "Van Kemenade, Rudy"]
[Black "Bhopal, Raj"]
[Result "0-1"]
[ECO "A40"]
[WhiteElo "1960"]
[BlackElo "1991"]
[Annotator "NA RC"]
[PlyCount "104"]
[EventDate "2024.07.01"]
[EventType "team-tourn"]
[EventCountry "POL"]
[SourceTitle "playchess.com"]
[Source "ChessBase"]
[SourceQuality "1"]
[TimeControl "40/5400+30:1800+30"]

1. d4 {[%emt 0:00:07]} Nf6 {[%emt 0:00:19]} 2. c4 {[%emt 0:00:08]} e6 {[%emt 0:00:09]} 3. g3 {[%emt 0:00:05]} Bb4+ {[%emt 0:01:05]} 4. Nd2 {[%emt 0:00:09]} O-O {[%emt 0:01:10]} 5. Bg2 {[%emt 0:01:12]} d5 {[%emt 0:01:00]} 6. Ngf3 {[%emt 0:01:30]} b6 {[%emt 0:03:13]} 7. O-O {[%emt 0:01:30]} Bb7 {[%emt 0:00:39]} 8. Ne5 {[%emt 0:00:27]} Nbd7 {[%emt 0:05:31]} 9. f4 {[%emt 0:00:14]} Bxd2 {[%emt 0:12:14]} 10. Bxd2 {[%emt 0:02:52]} Ne4 {[%emt 0:01:21]} 11. Bxe4 {[%emt 0:00:47]} dxe4 {[%emt 0:00:09]} 12. Bc3 {[%emt 0:03:10]} Nxe5 {[%emt 0:04:50]} 13. fxe5 {[%emt 0:00:35]} a5 {[%emt 0:03:13]} 14. e3 {[%emt 0:01:02]} Qd7 {[%emt 0:06:10]} 15. Qg4 {[%emt 0:01:44]} Rad8 {[%emt 0:07:19]} 16. Rad1 {[%emt 0:00:12]} Qa4 {[%emt 0:05:41]} 17. b3 {[%emt 0:02:11]} Qxa2 {[%emt 0:01:44]} 18. d5 {[%emt 0:00:24]} Bc8 {[%emt 0:15:29]} 19. Qxe4 {[%emt 0:01:02]} Qxb3 {[%emt 0:00:58]} 20. Ba1 {[%emt 0:00:50]} Bb7 {[%emt 0:03:00]} 21. Qg4 {[%emt 0:00:13]} Qxe3+ {[%emt 0:02:28]} 22. Rf2 {[%emt 0:01:35]} Bc8 {[%emt 0:02:34]} 23. d6 {[%emt 0:02:54]} cxd6 {[%emt 0:03:13]} 24. Bd4 {[%emt 0:00:11]} Qb3 {[%emt 0:00:49]} 25. Rc1 {[%emt 0:04:27]} Qa3 {[%emt 0:04:32]} 26. Qg5 {[%emt 0:03:38]} h6 {[%emt 0:02:19]} 27. Qf4 {[%emt 0:02:56]} g5 {[%emt 0:02:06]} 28. Qe3 {[%emt 0:00:07]} Qxe3 {[%emt 0:01:14]} 29. Bxe3 {[%emt 0:00:08]} dxe5 {[%emt 0:01:39]} 30. Bxb6 {[%emt 0:00:07]} Rd3 {[%emt 0:00:47]} 31. Bxa5 {[%emt 0:00:08]} Bb7 {[%emt 0:00:38]} 32. Bc7 {[%emt 0:01:49]} e4 {[%emt 0:00:51]} 33. Bb6 {[%emt 0:01:46]} f5 {[%emt 0:00:47]} 34. Ra2 {[%emt 0:01:21]} Rc8 {[%emt 0:01:58]} 35. Ra7 {[%emt 0:00:22]} Bd5 {[%emt 0:00:41]} 36. Rc7 {[%emt 0:00:47]} Rxc7 {[%emt 0:00:34]} 37. Bxc7 {[%emt 0:00:07]} Bc6 {[%emt 0:00:19]} 38. Kf2 {[%emt 0:01:16]} Rd2+ {[%emt 0:01:12]} 39. Ke3 {[%emt 0:00:08]} Rd3+ {[%emt 0:00:56]} 40. Ke2 {[%emt 0:00:08]} Kf8 {[%emt 0:02:35]} 41. Be5 {[%emt 0:30:19]} Bb7 {[%emt 0:32:55]} 42. Rd1 {[%emt 0:01:02]} Ba6 {[%emt 0:00:00]} 43. Rc1 {[%emt 0:00:00]} Kf7 {[%emt 0:00:00]} 44. Rc2 {[%emt 0:00:00]} Rf3 {[%emt 0:00:00]} 45. Rc3 {[%emt 0:00:00]} Rxc3 {[%emt 0:00:00]} 46. Bxc3 {[%emt 0:00:00]} Bxc4+ {[%emt 0:00:00]} 47. Ke3 {[%emt 0:00:00]} Kg6 {[%emt 0:00:00]} 48. Be5 {[%emt 0:00:00]} Bd5 {[%emt 0:00:00]} 49. Kd4 {[%emt 0:00:00]} Kh5 {[%emt 0:00:00]} 50. Bg7 {[%emt 0:00:00]} f4 {[%emt 0:00:00]} 51. gxf4 {[%emt 0:00:00]} gxf4 {[%emt 0:00:00]} 52. Be5 {[%emt 0:00:00]} Kg4 {[%emt 0:00:00]} 0-1

[Event "WSTCC-65 2024"]
[Site "Krakow"]
[Date "2024.07.06"]
[Round "5.14"]
[White "Kerr, Grant"]
[Black "Holst, Per"]
[Result "0-1"]
[ECO "C11"]
[WhiteElo "1769"]
[BlackElo "2073"]
[Annotator "NA RC"]
[PlyCount "94"]
[EventDate "2024.07.01"]
[EventType "team-tourn"]
[EventCountry "POL"]
[SourceTitle "playchess.com"]
[Source "ChessBase"]
[SourceQuality "1"]
[TimeControl "40/5400+30:1800+30"]

1. e4 {[%emt 0:00:15]} e6 {[%emt 0:00:07]} 2. Nf3 {[%emt 0:00:14]} d5 {[%emt 0:00:42]} 3. Nc3 {[%emt 0:00:11]} Nf6 {[%emt 0:00:11]} 4. e5 {[%emt 0:00:40]} Nfd7 {[%emt 0:00:09]} 5. d4 {[%emt 0:00:16]} c5 {[%emt 0:00:10]} 6. dxc5 {[%emt 0:00:20]} Nc6 {[%emt 0:01:50]} 7. Bf4 {[%emt 0:01:18]} Nxc5 {[%emt 0:00:44]} 8. Bd3 {[%emt 0:01:24]} Be7 {[%emt 0:00:18]} 9. O-O {[%emt 0:01:28]} O-O {[%emt 0:00:53]} 10. Re1 {[%emt 0:04:30]} f5 {[%emt 0:06:53]} 11. exf6 Bxf6 12. Ne5 {[%emt 0:26:44]} Nxd3 {[%emt 0:06:43]} 13. Qxd3 {[%emt 0:09:37]} Qb6 {[%emt 0:17:10]} 14. Qd2 {[%emt 0:10:37]} d4 {[%emt 0:11:37]} 15. Nd1 {[%emt 0:01:48]} Qc5 {[%emt 0:01:02]} 16. Nxc6 {[%emt 0:10:58]} bxc6 {[%emt 0:01:55]} 17. Qe2 {[%emt 0:02:36]} Bd7 {[%emt 0:11:27]} 18. Be5 {[%emt 0:00:38]} Qd5 {[%emt 0:00:39]} 19. Qe4 {[%emt 0:09:01]} c5 {[%emt 0:02:46]} 20. Qxd5 {[%emt 0:01:25]} exd5 {[%emt 0:00:03]} 21. Bxf6 {[%emt 0:00:12]} Rxf6 {[%emt 0:00:43]} 22. b3 {[%emt 0:00:44]} Bf5 {[%emt 0:05:11]} 23. Rc1 {[%emt 0:00:07]} Kf7 {[%emt 0:01:21]} 24. f3 {[%emt 0:00:04]} Ra6 {[%emt 0:02:47]} 25. a4 {[%emt 0:00:17]} Re6 {[%emt 0:00:14]} 26. Rxe6 {[%emt 0:00:16]} Kxe6 {[%emt 0:00:24]} 27. Nf2 {[%emt 0:00:13]} Kd6 {[%emt 0:00:57]} 28. Kf1 {[%emt 0:03:54]} a5 {[%emt 0:06:07]} 29. Ke2 c4 30. bxc4 {[%emt 0:09:53]} dxc4 {[%emt 0:00:43]} 31. g4 {[%emt 0:00:49]} Bg6 {[%emt 0:00:44]} 32. f4 {[%emt 0:00:00]} Rb8 {[%emt 0:01:48]} 33. f5 {[%emt 0:00:47]} Be8 {[%emt 0:00:38]} 34. Rd1 {[%emt 0:01:43]} Ke5 {[%emt 0:03:12]} 35. Kd2 {[%emt 0:01:00]} Bxa4 {[%emt 0:04:10]} 36. Ra1 {[%emt 0:00:14]} Bb5 {[%emt 0:07:08]} 37. Rxa5 {[%emt 0:00:30]} Rb7 {[%emt 0:03:38]} 38. h3 {[%emt 0:00:16]} Kf4 {[%emt 0:00:20]} 39. Ke1 {[%emt 0:02:09]} Kf3 {[%emt 0:02:01]} 40. Ra8 {[%emt 0:02:13]} Re7+ {[%emt 0:00:25]} 41. Kf1 {[%emt 0:30:18]} c3+ {[%emt 0:31:51]} 42. Kg1 {[%emt 0:00:03]} Re1+ {[%emt 0:00:45]} 43. Kh2 {[%emt 0:00:06]} Kxf2 {[%emt 0:00:17]} 44. Rc8 {[%emt 0:00:56]} Be2 {[%emt 0:00:42]} 45. Re8 {[%emt 0:00:01]} Bf3 {[%emt 0:00:29]} 46. Rxe1 {[%emt 0:00:06]} Kxe1 {[%emt 0:00:08]} 47. g5 {[%emt 0:00:11]} Be4 0-1

[Event "WSTCC-65 2024"]
[Site "Krakow"]
[Date "2024.07.06"]
[Round "5.15"]
[White "Vatter, Hans-Joachim"]
[Black "Hewson, Brian W R"]
[Result "1/2-1/2"]
[ECO "B12"]
[WhiteElo "2214"]
[BlackElo "2042"]
[Annotator "RC"]
[PlyCount "112"]
[EventDate "2024.07.01"]
[EventType "team-tourn"]
[EventCountry "POL"]
[SourceTitle "playchess.com"]
[Source "ChessBase"]
[SourceQuality "1"]
[TimeControl "40/5400+30:1800+30"]

1. e4 {[%emt 0:00:04]} c6 {[%emt 0:00:28]} 2. d4 {[%emt 0:00:05]} d5 {[%emt 0:00:04]} 3. e5 {[%emt 0:00:10]} Bf5 {[%emt 0:00:05]} 4. Nf3 {[%emt 0:00:07]} e6 {[%emt 0:00:20]} 5. Be2 {[%emt 0:00:13]} c5 {[%emt 0:01:28]} 6. Be3 {[%emt 0:00:13]} cxd4 {[%emt 0:00:44]} 7. Nxd4 {[%emt 0:02:26]} Ne7 {[%emt 0:00:10]} 8. O-O {[%emt 0:02:16]} Nbc6 {[%emt 0:00:58]} 9. Bb5 {[%emt 0:02:52]} Bg6 {[%emt 0:04:12]} 10. c4 {[%emt 0:01:28]} a6 {[%emt 0:17:20]} 11. Bxc6+ {[%emt 0:04:15]} bxc6 {[%emt 0:16:35]} 12. Qa4 {[%emt 0:07:48]} Qd7 {[%emt 0:14:21]} 13. Na3 {[%emt 0:11:29]} Nf5 {[%emt 0:06:58]} 14. Nxf5 {[%emt 0:10:28]} Bxf5 {[%emt 0:01:41]} 15. c5 {[%emt 0:00:25]} Be7 {[%emt 0:01:01]} 16. Rfd1 {[%emt 0:00:45]} Qc7 {[%emt 0:00:28]} 17. Bd4 {[%emt 0:01:32]} O-O {[%emt 0:00:09]} 18. Nc2 {[%emt 0:00:37]} Bxc2 {[%emt 0:00:54]} 19. Qxc2 {[%emt 0:00:02]} f6 {[%emt 0:04:48]} 20. f4 {[%emt 0:05:01]} f5 {[%emt 0:00:45]} 21. Rd3 {[%emt 0:00:18]} Rfb8 {[%emt 0:01:09]} 22. Rf1 {[%emt 0:02:52]} Rb4 {[%emt 0:00:39]} 23. b3 {[%emt 0:00:13]} Qa7 {[%emt 0:03:18]} 24. Kh1 {[%emt 0:03:05]} a5 {[%emt 0:02:51]} 25. a3 {[%emt 0:05:50]} Rb5 {[%emt 0:00:59]} 26. Rc3 {[%emt 0:00:19]} Rab8 {[%emt 0:00:25]} 27. h3 {[%emt 0:03:08]} Qb7 {[%emt 0:00:45]} 28. Rff3 {[%emt 0:00:22]} g6 {[%emt 0:03:44]} 29. g4 {[%emt 0:01:05]} Rf8 {[%emt 0:00:47]} 30. g5 {[%emt 0:00:40]} Kf7 {[%emt 0:00:29]} 31. h4 {[%emt 0:00:39]} Qb8 {[%emt 0:03:11]} 32. h5 {[%emt 0:03:21]} Rg8 {[%emt 0:01:07]} 33. Rh3 {[%emt 0:00:38]} Bf8 {[%emt 0:00:11]} 34. hxg6+ {[%emt 0:11:23]} hxg6 {[%emt 0:00:06]} 35. Kg1 {[%emt 0:00:06]} Bg7 {[%emt 0:00:53]} 36. Kf1 {[%emt 0:00:17]} Rh8 {[%emt 0:01:51]} 37. Qd3 {[%emt 0:01:22]} Rxh3 {[%emt 0:00:41]} 38. Qxh3 {[%emt 0:00:04]} Qa8 {[%emt 0:02:04]} 39. Qg2 {[%emt 0:06:09]} Rb8 {[%emt 0:00:45]} 40. Rh3 {[%emt 0:04:44]} Qa6+ {[%emt 0:06:53]} 41. Qe2 {[%emt 0:30:16]} Qa8 {[%emt 0:32:15]} 42. Ke1 {[%emt 0:07:45]} Rb5 {[%emt 0:00:00]} 43. Kd1 {[%emt 0:00:00]} a4 {[%emt 0:00:00]} 44. b4 {[%emt 0:00:00]} Rb8 {[%emt 0:00:00]} 45. Kd2 {[%emt 0:00:00]} Rb5 {[%emt 0:00:00]} 46. Kc3 {[%emt 0:00:00]} Qb8 {[%emt 0:00:00]} 47. Qh2 {[%emt 0:00:00]} Qf8 {[%emt 0:00:00]} 48. Rh7 {[%emt 0:00:00]} Qg8 {[%emt 0:00:00]} 49. Rh3 {[%emt 0:00:00]} Qf8 {[%emt 0:00:00]} 50. Kb2 {[%emt 0:00:00]} Qg8 {[%emt 0:00:00]} 51. Rc3 {[%emt 0:00:00]} Qf8 {[%emt 0:00:00]} 52. Qe2 {[%emt 0:00:00]} Qb8 {[%emt 0:00:00]} 53. Rh3 {[%emt 0:00:00]} Qc8 {[%emt 0:00:00]} 54. Ka2 {[%emt 0:00:00]} Qb8 {[%emt 0:00:00]} 55. Rc3 {[%emt 0:00:00]} Bf8 {[%emt 0:00:00]} 56. Rh3 {[%emt 0:00:00]} Bg7 {[%emt 0:00:00]} 1/2-1/2

[Event "WSTCC-65 2024"]
[Site "Krakow"]
[Date "2024.07.06"]
[Round "5.15"]
[White "Scrimgour, Alan"]
[Black "Hughes, Anthony"]
[Result "1-0"]
[ECO "B13"]
[WhiteElo "1979"]
[BlackElo "1913"]
[Annotator "NA RC"]
[PlyCount "63"]
[EventDate "2024.07.01"]
[EventType "team-tourn"]
[EventCountry "POL"]
[SourceTitle "playchess.com"]
[Source "ChessBase"]
[SourceQuality "1"]
[TimeControl "40/5400+30:1800+30"]

1. e4 {[%emt 0:00:03]} c6 {[%emt 0:00:05]} 2. d4 {[%emt 0:00:05]} d5 {[%emt 0:00:03]} 3. exd5 {[%emt 0:00:06]} cxd5 {[%emt 0:00:03]} 4. c4 {[%emt 0:00:09]} Nf6 {[%emt 0:00:08]} 5. Nc3 {[%emt 0:00:08]} Nc6 {[%emt 0:00:05]} 6. Bg5 {[%emt 0:00:54]} dxc4 {[%emt 0:00:22]} 7. Bxc4 {[%emt 0:08:44]} e6 {[%emt 0:00:14]} 8. Nf3 {[%emt 0:00:25]} Be7 {[%emt 0:00:13]} 9. O-O {[%emt 0:01:54]} O-O {[%emt 0:00:15]} 10. Re1 {[%emt 0:04:48]} a6 {[%emt 0:00:43]} 11. Rc1 {[%emt 0:11:00]} b5 {[%emt 0:01:08]} 12. Bd3 {[%emt 0:03:14]} Bb7 {[%emt 0:00:31]} 13. Bb1 {[%emt 0:02:38]} Nb4 {[%emt 0:18:23]} 14. Ne5 {[%emt 0:06:52]} Nbd5 {[%emt 0:10:49]} 15. Qd3 {[%emt 0:05:27]} Rc8 {[%emt 0:16:56]} 16. Qh3 {[%emt 0:04:18]} h6 {[%emt 0:14:18]} 17. Bxh6 {[%emt 0:07:19]} gxh6 {[%emt 0:06:30]} 18. Qxh6 {[%emt 0:00:41]} Nxc3 {[%emt 0:07:43]} 19. Rxc3 {[%emt 0:15:11]} Rxc3 {[%emt 0:02:17]} 20. bxc3 {[%emt 0:05:10]} Qd5 {[%emt 0:03:45]} 21. Qg5+ {[%emt 0:03:43]} Kh8 {[%emt 0:00:51]} 22. f3 {[%emt 0:09:33]} Qd6 {[%emt 0:06:19]} 23. Qh6+ {[%emt 0:02:11]} Kg8 {[%emt 0:00:15]} 24. Ng4 {[%emt 0:02:10]} Be4 {[%emt 0:06:34]} 25. Nxf6+ {[%emt 0:00:32]} Bxf6 {[%emt 0:00:05]} 26. Bxe4 {[%emt 0:00:16]} Bxd4+ {[%emt 0:01:09]} 27. cxd4 {[%emt 0:00:15]} Qxd4+ {[%emt 0:00:11]} 28. Qe3 {[%emt 0:00:25]} Qf6 {[%emt 0:01:28]} 29. Rc1 {[%emt 0:00:53]} Rd8 {[%emt 0:00:22]} 30. g3 {[%emt 0:01:06]} Rd4 {[%emt 0:00:49]} 31. h4 {[%emt 0:01:00]} Kf8 {[%emt 0:01:44]} 32. Qg5 {[%emt 0:02:59]} 1-0

[Event "WSTCC-65 2024"]
[Site "Krakow"]
[Date "2024.07.06"]
[Round "5.15"]
[White "Jorgensen, Arne Bjorn"]
[Black "Cooper, Nigel"]
[Result "1-0"]
[ECO "D48"]
[WhiteElo "1940"]
[BlackElo "1662"]
[Annotator "NA RC"]
[PlyCount "95"]
[EventDate "2024.07.01"]
[EventType "team-tourn"]
[EventCountry "POL"]
[SourceTitle "playchess.com"]
[Source "ChessBase"]
[SourceQuality "1"]
[TimeControl "40/5400+30:1800+30"]

1. d4 {[%emt 0:00:03]} d5 {[%emt 0:00:06]} 2. c4 {[%emt 0:00:04]} e6 {[%emt 0:00:08]} 3. Nf3 {[%emt 0:00:05]} c6 {[%emt 0:00:14]} 4. e3 {[%emt 0:00:25]} Nf6 {[%emt 0:00:15]} 5. Nc3 {[%emt 0:00:08]} Nbd7 {[%emt 0:00:55]} 6. Bd3 {[%emt 0:00:09]} dxc4 {[%emt 0:00:16]} 7. Bxc4 {[%emt 0:00:06]} b5 {[%emt 0:01:27]} 8. Bd3 {[%emt 0:00:13]} a6 {[%emt 0:00:11]} 9. O-O {[%emt 0:00:21]} c5 {[%emt 0:00:10]} 10. b3 {[%emt 0:00:58]} Bb7 {[%emt 0:01:55]} 11. Bb2 {[%emt 0:01:18]} Bd6 {[%emt 0:14:46]} 12. Qe2 {[%emt 0:01:29]} O-O {[%emt 0:00:51]} 13. Rfd1 {[%emt 0:01:21]} Qe7 {[%emt 0:07:01]} 14. h3 {[%emt 0:04:54]} Rfd8 {[%emt 0:12:45]} 15. Rac1 {[%emt 0:05:28]} e5 {[%emt 0:11:17]} 16. Nxe5 {[%emt 0:14:43]} Nxe5 {[%emt 0:00:16]} 17. dxe5 {[%emt 0:00:19]} Bxe5 {[%emt 0:01:20]} 18. Bb1 {[%emt 0:03:05]} Nd5 {[%emt 0:03:58]} 19. Nxd5 {[%emt 0:10:29]} Rxd5 {[%emt 0:00:56]} 20. Rxd5 {[%emt 0:02:13]} Bxb2 {[%emt 0:12:15]} 21. Qxb2 {[%emt 0:03:05]} Bxd5 {[%emt 0:00:33]} 22. Qc2 {[%emt 0:00:23]} g6 {[%emt 0:08:51]} 23. Qxc5 {[%emt 0:01:16]} Qxc5 {[%emt 0:02:03]} 24. Rxc5 {[%emt 0:00:06]} Be6 {[%emt 0:00:33]} 25. Be4 {[%emt 0:04:10]} Rc8 {[%emt 0:02:12]} 26. Rxc8+ {[%emt 0:02:43]} Bxc8 {[%emt 0:00:02]} 27. b4 {[%emt 0:00:43]} Kf8 {[%emt 0:02:07]} 28. Kf1 {[%emt 0:00:40]} Ke7 {[%emt 0:00:01]} 29. Ke2 {[%emt 0:00:23]} Kd6 {[%emt 0:00:02]} 30. f4 {[%emt 0:01:23]} h5 {[%emt 0:07:12]} 31. Kd3 {[%emt 0:01:07]} f5 {[%emt 0:01:40]} 32. Bf3 {[%emt 0:00:31]} Be6 {[%emt 0:00:33]} 33. a3 {[%emt 0:01:15]} Bd5 {[%emt 0:00:33]} 34. Bxd5 {[%emt 0:01:33]} Kxd5 {[%emt 0:00:01]} 35. g3 {[%emt 0:00:23]} Kc6 {[%emt 0:01:06]} 36. Kd4 {[%emt 0:00:29]} Kb6 {[%emt 0:03:16]} 37. Ke5 {[%emt 0:01:39]} a5 {[%emt 0:00:15]} 38. Kf6 {[%emt 0:01:07]} axb4 {[%emt 0:00:22]} 39. axb4 {[%emt 0:00:03]} Kc6 {[%emt 0:00:02]} 40. Kxg6 {[%emt 0:00:16]} Kd5 {[%emt 0:00:04]} 41. Kxf5 {[%emt 0:30:35]} Kc4 {[%emt 0:30:11]} 42. e4 {[%emt 0:00:36]} Kxb4 {[%emt 0:00:05]} 43. e5 {[%emt 0:00:15]} Kc3 {[%emt 0:01:42]} 44. e6 {[%emt 0:00:31]} b4 {[%emt 0:00:02]} 45. e7 {[%emt 0:00:13]} b3 {[%emt 0:00:01]} 46. e8=Q {[%emt 0:00:11]} b2 {[%emt 0:00:17]} 47. Qe5+ {[%emt 0:00:23]} Kc2 {[%emt 0:00:03]} 48. Qxb2+ 1-0

[Event "WSTCC-65 2024"]
[Site "Krakow"]
[Date "2024.07.06"]
[Round "5.16"]
[White "Quinn, Peter"]
[Black "McAndrew, Robert"]
[Result "1/2-1/2"]
[ECO "B15"]
[WhiteElo "1744"]
[BlackElo "1926"]
[Annotator "NA RC"]
[PlyCount "76"]
[EventDate "2024.07.01"]
[EventType "team-tourn"]
[EventCountry "POL"]
[SourceTitle "playchess.com"]
[Source "ChessBase"]
[SourceQuality "1"]
[TimeControl "40/5400+30:1800+30"]

1. e4 {[%emt 0:00:28]} c6 {[%emt 0:00:15]} 2. d4 {[%emt 0:02:24]} d5 {[%emt 0:00:18]} 3. Nc3 {[%emt 0:00:50]} dxe4 {[%emt 0:01:59]} 4. Nxe4 {[%emt 0:01:03]} Nf6 {[%emt 0:01:00]} 5. Nxf6+ {[%emt 0:01:06]} exf6 {[%emt 0:00:59]} 6. c3 {[%emt 0:01:29]} Bd6 {[%emt 0:01:29]} 7. Bd3 {[%emt 0:02:11]} O-O {[%emt 0:02:18]} 8. Ne2 {[%emt 0:01:41]} Re8 {[%emt 0:02:03]} 9. O-O {[%emt 0:01:00]} Nd7 {[%emt 0:11:32]} 10. Be3 {[%emt 0:12:03]} Nf8 {[%emt 0:14:50]} 11. Qd2 {[%emt 0:01:42]} Ng6 {[%emt 0:03:12]} 12. Rfe1 {[%emt 0:02:06]} Qc7 {[%emt 0:02:25]} 13. Bxg6 {[%emt 0:11:42]} hxg6 {[%emt 0:01:00]} 14. h3 {[%emt 0:11:48]} Bf5 {[%emt 0:17:14]} 15. f3 {[%emt 0:05:10]} Re7 {[%emt 0:05:43]} 16. g4 {[%emt 0:06:00]} Rae8 {[%emt 0:02:55]} 17. Bf2 {[%emt 0:01:23]} Be6 {[%emt 0:04:05]} 18. Kg2 {[%emt 0:01:51]} Bc4 {[%emt 0:06:52]} 19. Ng3 {[%emt 0:05:49]} Bf4 {[%emt 0:01:24]} 20. Rxe7 {[%emt 0:01:44]} Rxe7 {[%emt 0:00:07]} 21. Qd1 {[%emt 0:01:28]} b5 {[%emt 0:02:06]} 22. b3 {[%emt 0:01:58]} Bd5 {[%emt 0:00:24]} 23. Qd3 {[%emt 0:02:14]} f5 {[%emt 0:01:21]} 24. Re1 {[%emt 0:01:49]} Rxe1 {[%emt 0:01:36]} 25. Bxe1 {[%emt 0:00:11]} fxg4 {[%emt 0:00:42]} 26. hxg4 {[%emt 0:01:08]} Qd7 {[%emt 0:03:25]} 27. Ne4 {[%emt 0:03:48]} f5 {[%emt 0:00:51]} 28. gxf5 {[%emt 0:00:53]} Qxf5 {[%emt 0:03:52]} 29. c4 {[%emt 0:03:04]} Be6 {[%emt 0:01:37]} 30. Kf2 {[%emt 0:03:24]} bxc4 {[%emt 0:01:26]} 31. bxc4 {[%emt 0:00:37]} Qf7 {[%emt 0:00:13]} 32. d5 {[%emt 0:02:34]} cxd5 {[%emt 0:00:08]} 33. cxd5 {[%emt 0:00:37]} Bxd5 {[%emt 0:00:05]} 34. Nc3 {[%emt 0:00:33]} Bxa2 {[%emt 0:05:44]} 35. Qd8+ {[%emt 0:00:53]} Kh7 {[%emt 0:00:20]} 36. Qh4+ {[%emt 0:00:35]} Kg8 {[%emt 0:00:54]} 37. Qd8+ {[%emt 0:00:09]} Kh7 {[%emt 0:00:25]} 38. Qh4+ {[%emt 0:00:10]} Kg8 {[%emt 0:01:02]} 1/2-1/2